Cogmind - Beta 15 @@@ ROGUE MODE // 2025.07.27 @ 23:34:46 Player: jumpy Result: Destroyed by P-80 Master with Gamma Rifle Performance ------------- Evolutions (9) 4500 Regions Visited (14) 2800 Robots Destroyed (77) 385 Value Destroyed (2771) 2771 Prototype IDs (12) 240 Alien Tech Used (0) 0 Bonus (3020) 3020 TOTAL SCORE: 13716 Bonus ------- High Alert Combat Kills 20 Met Warlord at Base 500 MAIN.C Attacked Warlord 500 Met Warlord at Research 2000 Cogmind --------- Core Integrity 0/1600 Matter 293/300 Energy 100/100 System Corruption 3% Temperature Cool (0) Movement Core (50) Location -1/Access Parts ------- > --- POWER (2) -------- (None) > --- PROPULSION (8) --- (None) > --- UTILITY (12) ----- Advanced Signal Interpreter Advanced Terrain Scan Processor Improved Melee Analysis Suite Advanced Target Analyzer Advanced Hacking Suite > --- WEAPON (3) ------- (None) > --- INVENTORY (5) ---- Particle Reactor Quantum Reactor Light Quantum Reactor Matter Neutralizer Peak State ------------ > --- POWER ------------ Quantum Reactor Light Quantum Reactor > --- PROPULSION ------- Gyrokinetic Inverter Gyrokinetic Inverter Improved Antigrav System Improved Antigrav System Improved Antigrav System Antigrav Array > --- UTILITY ---------- Advanced Heat Sink Large Storage Unit Advanced Sensor Array Advanced Signal Interpreter Advanced Terrain Scan Processor Advanced Target Analyzer Advanced Weapon Cycler Experimental Propulsion Shielding Improved Light Armor Plating Advanced Hacking Suite Experimental Hacking Suite > --- WEAPON ----------- Heavy Proton Cannon Enhanced Hardcell Cannon Nanosword > --- INVENTORY -------- Light Antimatter Reactor Micro Antimatter Reactor Centrium Wheel Gyrokinetic Inverter Gyrokinetic Inverter Gyrokinetic Inverter Improved Antigrav System Improved Antigrav System Improved Antigrav System Improved Linear Gravjet Experimental Heat Sink Advanced Signal Interpreter Advanced Phase Shifter Experimental Propulsion Shielding Matter Neutralizer [Rating: 160] Favorites ----------- Power Improved Ion Engine Engine Improved Ion Engine Power Core Neutrino Core Reactor Micro Antimatter Reactor Propulsion Linear Gravjet Leg Aluminum Leg Hover Unit Linear Gravjet Utility Small Storage Unit Device Seismic Detector Storage Small Storage Unit Processor Advanced Signal Interpreter Hackware Advanced Hacking Suite Protection Improved Light Armor Plating Weapon Heavy Particle Gun Energy Gun Heavy Particle Gun Energy Cannon Heavy Proton Cannon Ballistic Gun High-powered Shotgun Ballistic Cannon Antimatter Cannon Launcher Micro-nuke Launcher Special Weapon RU-N14's Throwing Claymores v3 Impact Weapon Great Maul Slashing Weapon Nanosword Build | -11 -10 -9 -8 -7 -6 -5 -5 -5 -5 -4 -4 -3 -2 -1 ------- Run | Yrd Mat Mat Mat Fac Fac Fac Upp Upp War Pro Fac Res Res Acc Slots Evolved 18 | . . 2 2 2 2 2 . . . . 2 2 2 2 Power 1 | . . . . . . 1 . . . . . . . . Propulsion 6 | . . 1 1 . 1 1 . . . . . . 1 1 Utility 10 | . . 1 1 1 1 . . . . . 2 2 1 1 Weapon 1 | . . . . 1 . . . . . . . . . . Parts Attached 125 | 8 . 13 10 17 8 . 3 2 3 3 4 25 20 9 Power 21 | 2 . 2 . 4 1 . 1 . . 1 1 5 3 1 Engine 6 | 2 . 2 . 1 1 . . . . . . . . . Core 4 | . . . . 3 . . 1 . . . . . . . Reactor 11 | . . . . . . . . . . 1 1 5 3 1 Propulsion 34 | 2 . 5 3 7 1 . . . . 1 2 4 6 3 Treads . | . . . . . . . . . . . . . . . Leg 10 | 2 . 5 3 . . . . . . . . . . . Wheel . | . . . . . . . . . . . . . . . Hover 24 | . . . . 7 1 . . . . 1 2 4 6 3 Flight . | . . . . . . . . . . . . . . . Utility 40 | 2 . 3 4 2 3 . 1 1 1 . 1 9 8 5 Device 15 | 1 . 1 2 1 2 . . . . . . 3 3 2 Storage 4 | 1 . 1 . . 1 . . . . . . . 1 . Processor 8 | . . . . 1 . . 1 . 1 . . 3 . 2 Hackware 3 | . . . . . . . . . . . . . 2 1 Protection 10 | . . 1 2 . . . . 1 . . 1 3 2 . Artifact . | . . . . . . . . . . . . . . . Weapon 30 | 2 . 3 3 4 3 . 1 1 2 1 . 7 3 . Energy Gun 6 | 2 . 2 2 . . . . . . . . . . . Energy Cannon 3 | . . . . . . . . . . . . 3 . . Ballistic Gun 5 | . . . 1 4 . . . . . . . . . . Ballistic Cannon 6 | . . 1 . . 2 . . 1 . . . . 2 . Launcher 2 | . . . . . 1 . . . . . . 1 . . Special Weapon 5 | . . . . . . . . . 2 1 . 2 . . Impact Weapon 1 | . . . . . . . 1 . . . . . . . Slashing Weapon 2 | . . . . . . . . . . . . 1 1 . Piercing Weapon . | . . . . . . . . . . . . . . . Special Melee Weapon . | . . . . . . . . . . . . . . . Unidentified Prototypes 12 | . . 1 2 . 2 . . . 1 . . 4 2 . Corrupted Parts 1 | . . . . . . . . . . 1 . . . . System Corruption 10 | . . . . . . . . . . 10 . . . . Parts Lost 70 | . . 5 . . 6 . 1 . . 3 2 21 15 17 Power 8 | . . . . . . . . . . . 1 4 . 3 Propulsion 25 | . . 1 . . 3 . 1 . . 2 . 5 6 7 Utility 25 | . . 2 . . 1 . . . . 1 1 8 7 5 Weapon 12 | . . 2 . . 2 . . . . . . 4 2 2 Highest Loss Streak 17 | . . 4 . . 4 . 1 . . 2 2 11 12 17 To Critical Strikes . | . . . . . . . . . . . . . . . Average Backups 7 | 2 6 6 7 7 7 4 4 5 9 9 9 6 11 3 Power 1 | . 1 1 1 1 1 1 1 2 1 1 1 . 1 2 Propulsion 1 | 1 2 2 1 2 2 . . . . . . . 4 . Utility 2 | . 2 1 2 2 1 2 2 2 3 4 3 2 4 . Weapon 2 | . 1 1 2 2 1 1 1 1 4 4 4 2 1 1 Tool/Special . | . . . . . . . . . . . . . . . Unused Backups 20 | . . 1 4 4 2 1 . . . 1 . 1 5 1 Power 4 | . . . 1 . 1 . . . . . . 1 . 1 Propulsion 7 | . . 1 . 2 . . . . . . . . 4 . Utility 2 | . . . . . . 1 . . . . . . 1 . Weapon 7 | . . . 3 2 1 . . . . 1 . . . . Tool/Special . | . . . . . . . . . . . . . . . Average Slot Usage (%) 79 | . 100 75 87 92 87 64 62 67 82 73 56 45 88 58 Engine 4 | . 14 11 9 4 2 5 3 . 4 1 . . . . Core 1 | . . . . 2 3 . 1 5 5 2 . . . . Reactor 2 | . . . . . . . . . . 3 6 4 8 5 Leg 10 | . 28 28 36 10 . . . . . . . . . . Hover 15 | . . . . 19 28 29 27 23 23 23 17 12 23 12 Device 10 | . 14 6 9 15 17 11 11 11 6 3 . 3 12 9 Storage 6 | . 14 11 9 7 6 5 5 5 5 5 5 1 3 2 Processor 7 | . . . . 2 6 5 5 11 15 17 15 11 12 15 Hackware 1 | . . . . . . . . . . . . . 6 8 Protection 4 | . . 1 6 7 5 . . 3 5 5 8 3 7 . Energy Gun 6 | . 28 11 18 9 . . . . . . . . . . Ballistic Gun 1 | . . . . 11 3 . . . . . . . . . Ballistic Cannon 2 | . . 5 . . 11 5 3 . . . . . 3 . Peak Build Rating 160 | 7 7 15 25 45 61 50 50 59 73 73 70 100 160 158 Average Rating 55 | 6 7 9 21 37 54 49 48 48 64 57 51 59 147 110 On Entrance 44 | . 7 7 15 24 45 44 50 48 49 73 42 62 100 106 Naked Turns . | . . . . . . . . . . . . . . . Heaviest Build 84 | 14 14 18 25 35 43 29 34 31 52 52 42 47 84 66 Greatest Support 87 | 20 20 36 51 51 47 45 45 36 36 42 47 62 87 86 Greatest Overweight (x) 3 | . . 1 . 3 1 . . . 1 1 1 3 . 1 Average Overweight (x) . | . . . . . . . . . . . . . . . Largest Inventory Capacity 15 | 8 8 8 8 8 10 10 10 10 10 10 10 10 15 15 Average Capacity 9 | 7 8 8 8 8 8 10 10 10 10 10 10 6 12 10 Most Carried 15 | 6 7 8 8 8 8 5 6 6 10 10 10 10 15 9 Average Carried 7 | 3 6 6 7 7 7 4 4 5 9 9 9 6 11 3 Final Capacity 15 | 8 8 8 8 8 10 10 10 10 10 10 10 5 15 5 Final Carried 10 | 6 7 8 8 8 5 4 6 6 10 9 9 4 10 4 Class Distribution -------------------- 49% | Mutant 13% | Hacker-Mutant 7% | Gunner 7% | Derelict-Mutant 7% | Sprinter 5% | Scavenger-Mutant 4% | Commander-Mutant 3% | Tank Dominant Class ---------------- Mutant | -10/Materials Mutant | -9/Materials Mutant | -8/Materials Gunner | -7/Factory Mutant | -6/Factory Sprinter | -5/Factory Sprinter | -5/Upper Caves Derelict-Mutant | -5/Upper Caves Derelict-Mutant | -5/Warlord Mutant | -4/Proximity Caves Mutant | -4/Factory Mutant | -3/Research Hacker-Mutant | -2/Research Hacker-Mutant | -1/Access Resources | -11 -10 -9 -8 -7 -6 -5 -5 -5 -5 -4 -4 -3 -2 -1 ----------- Run | Yrd Mat Mat Mat Fac Fac Fac Upp Upp War Pro Fac Res Res Acc Matter Collected 1866 | 280 . 205 130 194 114 12 161 120 . 53 104 174 283 36 Remotely . | . . . . . . . . . . . . . . . Salvage Created 2671 | 211 . 588 523 211 131 . . 18 . 65 104 489 295 36 Parts 146 | 16 . 31 28 14 15 . . . . 3 3 25 8 3 Haulers Intercepted 5 | . . 2 . 1 . . . . . . 1 . 1 . Recyclers Shooed 4 | . . 1 3 . . . . . . . . . . . Parts Field Recycled . | . . . . . . . . . . . . . . . Retrieved Matter . | . . . . . . . . . . . . . . . Parts Self-Destructed 3 | . . . . . . . . 2 . 1 . . . . Prevented 4 | . . . . . . . . . . 4 . . . . Kills | -11 -10 -9 -8 -7 -6 -5 -5 -5 -5 -4 -4 -3 -2 -1 ------- Run | Yrd Mat Mat Mat Fac Fac Fac Upp Upp War Pro Fac Res Res Acc Combat Hostiles Destroyed 57 | . . 14 11 6 5 . . . . 5 . 14 1 1 Melee 7 | . . . . . 1 . . . . . . 5 . 1 Guns 23 | . . 6 11 6 . . . . . . . . . . Cannons 14 | . . 7 . . 1 . . . . 3 . 2 1 . AOE 12 | . . . . . 3 . . . . 2 . 7 . . Classes Destroyed 11 | 3 . 4 1 1 . . . . . 1 . . 1 . Worker 5 | 1 . . 1 2 1 . . . . . . . . . Tunneler 7 | 5 . . . . 1 . . . . . 1 . . . Hauler 5 | . . 2 . 1 . . . . . . 1 . 1 . Recycler 3 | 1 . . 1 . . . . . . . . . 1 . Drone 2 | . . . . . . . . . . 2 . . . . Swarmer 18 | . . 3 3 4 4 . . . . . . 3 . 1 Grunt 18 | . . 7 5 . . . . . . 2 . 4 . . Sentry 9 | . . 4 2 . 1 . . . . 1 . 1 . . Hunter 1 | . . . 1 . . . . . . . . . . . Programmer 8 | . . . . 2 . . . . . . . 6 . . Striker 1 | . . . . . . . . . . . . . 1 . Decomposer 1 | . . . . . . . . 1 . . . . . . Best Kill Streak 6 | 2 . 3 3 3 4 . . . . 2 1 6 1 1 Combat Bots Only 6 | . . 3 3 3 4 . . . . 2 . 6 1 1 Max Kills in Single Turn 5 | 1 . 1 1 1 3 . . 1 . 2 1 5 1 1 Gunslinging . | . . . . . . . . . . . . . . . Exploded 5 | . . . . . 3 . . . . 1 . 5 . . Melee 1 | . . . . . 1 . . . . . . 1 . 1 Uniques/NPCs Destroyed . | . . . . . . . . . . . . . . . Combat | -11 -10 -9 -8 -7 -6 -5 -5 -5 -5 -4 -4 -3 -2 -1 -------- Run | Yrd Mat Mat Mat Fac Fac Fac Upp Upp War Pro Fac Res Res Acc Hostile Shots Fired 800 | . . 89 41 28 128 . 5 3 4 10 12 155 144 181 Missed 295 | . . 23 14 10 61 . 3 2 . 1 4 45 58 74 Hits 505 | . . 66 27 18 67 . 2 1 4 9 8 110 86 107 Melee 3 | . . . . . . . . . . . . . 3 . Projectile 502 | . . 66 27 18 67 . 2 1 4 9 8 110 83 107 AOE 2 | . . . . . . . . . . . . . 2 . Critical Strikes 22 | . . 2 . . . . . . . 1 1 12 4 2 Actively Blocked 1 | . . . . . . . . . . . . 1 . . Part Disruptions 2 | . . . . . . . . . . . . 1 . 1 Damage Taken 11285 | . . 923 403 346 1190 24 38 25 60 200 254 2842 2442 2538 Core 3514 | . . 186 50 65 188 . 18 25 . 23 102 711 530 1616 Absorbed by Shields 53 | . . . . . 33 . . . 20 . . . . . Redirected to Shielding 529 | . . . . . . . . . 6 22 14 187 300 . Regen/Repaired (Parts) 167 | . . . . . . . . . 51 . . . 116 . Core Remaining (%) 80 | 100 100 53 90 90 77 . . . . 93 91 45 63 . Volleys Fired 163 | 16 . 54 31 24 7 2 . . . 9 . 13 7 . Largest 3 | 2 . 2 2 3 3 1 . . . 2 . 1 2 . Hottest 139 | 90 . 112 112 133 75 33 . . . . . 105 139 . Shots Fired 292 | 32 . 76 62 72 13 2 . . . 10 . 14 11 . Gun 218 | 32 . 46 62 72 6 . . . . . . . . . Cannon 54 | . . 30 . . 6 2 . . . . . 5 11 . Launcher 3 | . . . . . 1 . . . . . . 2 . . Special 17 | . . . . . . . . . . 10 . 7 . . Kinetic 116 | . . 30 . 66 12 2 . . . . . . 6 . Thermal 155 | 32 . 46 62 6 . . . . . . . 9 . . Explosive 16 | . . . . . 1 . . . . 10 . 5 . . Electromagnetic 5 | . . . . . . . . . . . . . 5 . Robot Hit Streak 13 | 5 . 13 13 7 10 12 . . . 7 . 9 2 . Robot Miss Streak 7 | 1 . 3 3 7 2 . . . . 3 . 1 3 . Penetration Max . | . . . . . . . . . . . . . . . Secondary Targets 2 | . . . . 2 . . . . . . . . . . Max Gunslinging Chain 1 | . . . . 1 . . . . . . . . . . Shots Hit Robots 222 | 22 . 55 43 39 9 2 . 1 . 7 3 29 10 2 Core Hits 107 | 8 . 21 21 14 8 . . 1 . 9 . 20 4 1 Critical Kills 1 | . . . . 1 . . . . . . . . . . Critical Parts Destroyed 4 | . . . . . . . . . . . 1 3 . . Critical Strikes 16 | 1 . 1 3 1 . . . . . 2 1 6 . 1 Burn 5 | 1 . 1 3 . . . . . . . . . . . Destroy 1 | . . . . 1 . . . . . . . . . . Smash 4 | . . . . . . . . . . . 1 3 . . Sever 6 | . . . . . . . . . . 2 . 3 . 1 Melee Attacks 69 | . . . . . . . . 1 2 . 3 31 27 5 Impact 18 | . . . . . . . . 1 2 . 3 12 . . Slashing 51 | . . . . . . . . . . . . 19 27 5 Piercing . | . . . . . . . . . . . . . . . Sneak Attacks 5 | . . . . . . . . 1 . . 2 . 2 . Combat Hostiles . | . . . . . . . . . . . . . . . Follow-up Attacks . | . . . . . . . . . . . . . . . Damage Inflicted 8382 | 250 . 857 791 674 628 128 . 58 . 1117 319 2771 626 163 Guns 2255 | 250 . 494 791 674 46 . . . . . . . . . Cannons 947 | . . 362 . . 193 79 . . . . . 173 140 . Explosions 2556 | . . . . . 320 . . . . 763 . 1473 . . Melee 1985 | . . . . . . . . 58 . . 280 1017 486 144 Ramming 177 | . . 1 . . 69 49 . . . . 39 . . 19 Kinetic 1414 | . . 362 . 658 239 79 . . . . . . 76 . Thermal 1891 | 250 . 494 791 16 113 . . . . . . 227 . . Explosive 2443 | . . . . . 207 . . . . 763 . 1473 . . Electromagnetic 64 | . . . . . . . . . . . . . 64 . Impact 682 | . . . . . . . . 58 . . 280 344 . . Slashing 1711 | . . . . . . . . . . 354 . 727 486 144 Piercing . | . . . . . . . . . . . . . . . Highest Corruption 15 | . . . . 2 3 . . . 1 11 . 15 . 3 Average Corruption 6 | . . . . 2 2 . . . 1 8 . 10 . 1 Corruption Purged . | . . . . . . . . . . . . . . . Corruption Blocked . | . . . . . . . . . . . . . . . Effects 18 | . . . . 2 1 . . . . 4 . 11 . . Message Errors 5 | . . . . . . . . . . 2 . 3 . . Matter Fused 1 | . . . . 1 . . . . . . . . . . Heat Flow Errors 1 | . . . . . . . . . . . . 1 . . Energy Discharges 2 | . . . . 1 . . . . . . . 1 . . Parts Rejected 1 | . . . . . . . . . . . . 1 . . Data Loss (minor) 3 | . . . . . 1 . . . . 1 . 1 . . Data Loss (major) 2 | . . . . . . . . . . 1 . 1 . . Misfires 1 | . . . . . . . . . . . . 1 . . Alerts 2 | . . . . . . . . . . . . 2 . . Overload Shots . | . . . . . . . . . . . . . . . Overflow Damage 697 | . . . . . 67 12 . . . 9 220 291 98 . Projectiles 60 | . . . . . 10 9 . . . . . 41 . . Explosions 101 | . . . . . 57 . . . . 9 . 35 . . Melee 536 | . . . . . . 3 . . . . 220 215 98 . Knockbacks 9 | . . 3 . . 2 3 . . . . . 1 . . Impact 2 | . . . . . . 1 . . . . . 1 . . Kinetic 6 | . . 2 . . 2 2 . . . . . . . . Secondary 1 | . . 1 . . . . . . . . . . . . Self-Inflicted Damage 589 | . . . . . 270 24 . . . . 19 267 . 9 Shots 6 | . . . . . 3 . . . . . . 3 . . Rammed 10 | . . . . . 4 2 . . . . 1 . . 3 Targets Rammed 12 | . . 2 . . 4 2 . . . . 1 . . 3 Kicked 2 | . . 2 . . . . . . . . . . . . Crushed . | . . . . . . . . . . . . . . . Highest Temperature 317 | 102 . 317 126 153 3 . . . . . 156 211 210 . Average Temperature 53 | 38 . 118 38 46 3 . . . . . 91 61 24 . Received Heat Transfer 924 | . . 351 126 18 48 . 18 9 18 63 48 45 135 45 Effects 4 | . . 4 . . . . . . . . . . . . Energy Bleed 1 | . . 1 . . . . . . . . . . . . Interference 3 | . . 3 . . . . . . . . . . . . Siege Activations . | . . . . . . . . . . . . . . . Martial Activations . | . . . . . . . . . . . . . . . Shielding Activations . | . . . . . . . . . . . . . . . Robots Disrupted . | . . . . . . . . . . . . . . . Combat Hostiles . | . . . . . . . . . . . . . . . Robots Corrupted . | . . . . . . . . . . . . . . . Combat Hostiles . | . . . . . . . . . . . . . . . Parts Fried . | . . . . . . . . . . . . . . . Impact Corruptions 12 | . . . . . . 1 . . . . 4 7 . . Robots Melted 1 | . . 1 . . . . . . . . . . . . Combat Hostiles 1 | . . 1 . . . . . . . . . . . . Parts Melted 6 | 1 . 1 4 . . . . . . . . . . . Heat Transferred 4422 | 719 . 1261 1887 37 50 . . . . . . 468 . . Parts Sabotaged . | . . . . . . . . . . . . . . . Parts Stolen . | . . . . . . . . . . . . . . . Parts Stripped . | . . . . . . . . . . . . . . . Power Chain Reactions . | . . . . . . . . . . . . . . . Alert | -11 -10 -9 -8 -7 -6 -5 -5 -5 -5 -4 -4 -3 -2 -1 ------- Run | Yrd Mat Mat Mat Fac Fac Fac Upp Upp War Pro Fac Res Res Acc Maximum Alert Level 2 | . . . . . 2 . . . . . 1 2 1 . Low Security (%) 84 | 100 100 100 100 100 86 100 . . . . . 17 75 100 Level 1 14 | . . . . . 13 . . . . . 100 73 24 . Level 2 . | . . . . . . . . . . . . 8 . . Level 3 . | . . . . . . . . . . . . . . . Level 4 . | . . . . . . . . . . . . . . . Level 5 . | . . . . . . . . . . . . . . . High Security . | . . . . . . . . . . . . . . . Max Security . | . . . . . . . . . . . . . . . Peak Influence 422 | 5 . 127 101 119 407 182 . . . . 324 422 260 94 Initial 312 | . . . 42 9 45 182 . . . . 312 159 222 89 Average 96 | 1 . 57 41 36 71 158 . . . . 296 301 164 49 Influence Increases 3496 | 35 . 419 291 282 611 30 90 45 . 70 372 638 440 173 Destroy 0b10 Robot/C 1200 | . . 280 220 120 200 . . . . 60 . 280 20 20 Destroy 0b10 Robot/NC 110 | 35 . 10 10 15 10 . . . . 10 10 . 10 . Destroy Leader 260 | . . 84 50 32 30 . . . . . 2 60 2 . Allied During Kill 5 | . . . . . 5 . . . . . . . . . Successful Hack 63 | . . . 10 24 29 . . . . . . . . . Disable Machine 135 | . . 15 . 30 30 . . . . . . 30 30 . Destroy Structure 208 | . . . 1 1 37 . . . . . . 118 48 3 Advance Influence 300 | . . . . . . . . . . . 300 . . . Partial Spotted 180 | . . . . 15 15 30 . . . . 15 60 30 15 Lose Combat Pursuer 1035 | . . 30 . 45 255 . 90 45 . . 45 90 300 135 Influence Decreases 3436 | 35 . 318 370 210 331 242 151 70 76 50 88 545 687 263 Entered New Map 859 | . . . 59 13 49 192 61 20 76 . 8 145 175 61 Time Decay 1915 | 35 . 268 311 197 182 50 80 50 . 50 60 190 362 80 Lost Part 622 | . . 50 . . 60 . 10 . . . 20 210 150 122 Lost Ally 40 | . . . . . 40 . . . . . . . . . Squads Dispatched 17 | . . 3 2 4 2 1 . . . . . 1 1 3 Investigation 4 | . . . . 1 1 1 . . . . . . 1 . Extermination 4 | . . . . 1 1 . . . . . . 1 . 1 Reinforcement 8 | . . 3 2 2 . . . . . . . . . 1 Assault . | . . . . . . . . . . . . . . . Garrison 1 | . . . . . . . . . . . . . . 1 Intercept . | . . . . . . . . . . . . . . . Searches Triggered . | . . . . . . . . . . . . . . . Construction Impeded . | . . . . . . . . . . . . . . . Haulers Reinforced . | . . . . . . . . . . . . . . . Active Scanning Responses . | . . . . . . . . . . . . . . . Cargo Convoy Interrupts . | . . . . . . . . . . . . . . . Stealth | -11 -10 -9 -8 -7 -6 -5 -5 -5 -5 -4 -4 -3 -2 -1 --------- Run | Yrd Mat Mat Mat Fac Fac Fac Upp Upp War Pro Fac Res Res Acc Distress Signals 16 | . . 4 3 1 2 . . . . . . . 4 2 Communications Jammed . | . . . . . . . . . . . . . . . Distress Signals . | . . . . . . . . . . . . . . . Times Spotted 221 | . 3 28 19 14 31 . 5 4 12 5 5 22 44 29 Peak Tracking Total 23 | . 3 5 6 4 10 . 3 3 15 2 6 8 21 23 Tactical Retreats 28 | . . 1 . 2 4 . 2 3 . . 1 4 7 4 Traps | -11 -10 -9 -8 -7 -6 -5 -5 -5 -5 -4 -4 -3 -2 -1 ------- Run | Yrd Mat Mat Mat Fac Fac Fac Upp Upp War Pro Fac Res Res Acc Traps Triggered 6 | . . . . 2 1 . . . . . 1 1 . 1 Indirectly . | . . . . . . . . . . . . . . . Trap Hack Attempts . | . . . . . . . . . . . . . . . Triggered . | . . . . . . . . . . . . . . . Disarmed 4 | . . 4 . . . . . . . . . . . . Reprogrammed . | . . . . . . . . . . . . . . . Reused . | . . . . . . . . . . . . . . . Traps Extracted . | . . . . . . . . . . . . . . . Installed . | . . . . . . . . . . . . . . . Triggered . | . . . . . . . . . . . . . . . Machines | -11 -10 -9 -8 -7 -6 -5 -5 -5 -5 -4 -4 -3 -2 -1 ---------- Run | Yrd Mat Mat Mat Fac Fac Fac Upp Upp War Pro Fac Res Res Acc Machines Disabled 9 | . . 1 . 2 2 . . . . . . 2 2 . Max in Single Turn 2 | . . 1 . 1 2 . . . . . . 1 1 . Garrison Access 3 | . . . . . 1 . . . . . . . 2 . Machines Repaired . | . . . . . . . . . . . . . . . Machines Dismantled . | . . . . . . . . . . . . . . . Machines Sabotaged . | . . . . . . . . . . . . . . . Overloaded Fab Kills . | . . . . . . . . . . . . . . . Hacking | -11 -10 -9 -8 -7 -6 -5 -5 -5 -5 -4 -4 -3 -2 -1 --------- Run | Yrd Mat Mat Mat Fac Fac Fac Upp Upp War Pro Fac Res Res Acc Machines Accessed 20 | . 1 2 3 3 4 1 . . 4 . . . 1 1 Terminals 8 | . 1 2 3 . 1 1 . . . . . . . . Fabricators 3 | . . . . 2 1 . . . . . . . . . Repair Stations 1 | . . . . . . . . . . . . . . 1 Recycling Units . | . . . . . . . . . . . . . . . Scanalyzers . | . . . . . . . . . . . . . . . Garrison Access 4 | . . . . 1 2 . . . . . . . 1 . Total Hacks 34 | . 2 4 7 4 7 3 . . 4 . . . 2 1 Successful 15 | . . 2 2 1 4 1 . . 4 . . . . 1 Failed 19 | . 2 2 5 3 3 2 . . . . . . 2 . Catastrophic 4 | . . . 1 1 1 . . . . . . . 1 . Database Lockouts . | . . . . . . . . . . . . . . . Manual 7 | . . 2 3 . 2 . . . . . . . . . Terminals 18 | . 2 4 7 . 2 3 . . . . . . . . Fabricators 4 | . . . . 2 2 . . . . . . . . . Repair Stations 1 | . . . . . . . . . . . . . . 1 Recycling Units . | . . . . . . . . . . . . . . . Scanalyzers . | . . . . . . . . . . . . . . . Garrison Access 7 | . . . . 2 3 . . . . . . . 2 . Terminal Hacks 10 | . . 2 1 . 2 1 . . 4 . . . . . Record 6 | . . . . . 2 1 . . 3 . . . . . Open Door 1 | . . . . . . . . . 1 . . . . . Locate Traps 1 | . . 1 . . . . . . . . . . . . Disarm Traps 1 | . . 1 . . . . . . . . . . . . Zone Layout 1 | . . . 1 . . . . . . . . . . . Fabricator Hacks 1 | . . . . 1 . . . . . . . . . . Build 1 | . . . . 1 . . . . . . . . . . Repair Station Hacks 1 | . . . . . . . . . . . . . . 1 Refit 1 | . . . . . . . . . . . . . . 1 Recycling Unit Hacks . | . . . . . . . . . . . . . . . Scanalyzer . | . . . . . . . . . . . . . . . Garrison Access Hacks 1 | . . . . . 1 . . . . . . . . . Seal Access 1 | . . . . . 1 . . . . . . . . . Unauthorized Hacks 2 | . . . 1 . 1 . . . . . . . . . Terminals 1 | . . . 1 . . . . . . . . . . . Botnet 1 | . . . 1 . . . . . . . . . . . Fabricators 1 | . . . . . 1 . . . . . . . . . Liberate 1 | . . . . . 1 . . . . . . . . . Repair Stations . | . . . . . . . . . . . . . . . Recycling Units . | . . . . . . . . . . . . . . . Scanalyzers . | . . . . . . . . . . . . . . . Garrison Access . | . . . . . . . . . . . . . . . Data Cores Recovered . | . . . . . . . . . . . . . . . Used . | . . . . . . . . . . . . . . . Hacking Detections 15 | . 1 2 3 3 3 1 . . . . . . 1 1 Full Trace Events 3 | . . . . . 1 1 . . . . . . 1 . Feedback Events . | . . . . . . . . . . . . . . . Feedback Blocked . | . . . . . . . . . . . . . . . Robot Schematics Acquired . | . . . . . . . . . . . . . . . Robots Built . | . . . . . . . . . . . . . . . Authchips . | . . . . . . . . . . . . . . . Time . | . . . . . . . . . . . . . . . Total Robot Build Rating . | . . . . . . . . . . . . . . . Part Schematics Acquired . | . . . . . . . . . . . . . . . Parts Built 2 | . . . . 2 . . . . . . . . . . Authchips . | . . . . . . . . . . . . . . . Time 31 | . . . . 31 . . . . . . . . . . Total Part Build Rating 10 | . . . . 10 . . . . . . . . . . Parts Repaired . | . . . . . . . . . . . . . . . Time . | . . . . . . . . . . . . . . . Parts Recycled . | . . . . . . . . . . . . . . . Recycled Matter . | . . . . . . . . . . . . . . . Retrieved Matter . | . . . . . . . . . . . . . . . Retrieved Components . | . . . . . . . . . . . . . . . Parts Scanalyzed . | . . . . . . . . . . . . . . . Part Schematics Acquired . | . . . . . . . . . . . . . . . Parts Damaged . | . . . . . . . . . . . . . . . Bothacking | -11 -10 -9 -8 -7 -6 -5 -5 -5 -5 -4 -4 -3 -2 -1 ------------ Run | Yrd Mat Mat Mat Fac Fac Fac Upp Upp War Pro Fac Res Res Acc Used RIF Installer . | . . . . . . . . . . . . . . . Robots Hacked . | . . . . . . . . . . . . . . . Non-combat . | . . . . . . . . . . . . . . . Combat . | . . . . . . . . . . . . . . . Robot Hacks Applied . | . . . . . . . . . . . . . . . Relay Couplers Released 2 | . . . . . . . . . . . . . 2 . Machine Destruction 2 | . . . . . . . . . . . . . 2 . Fabnet Peak Effective % . | . . . . . . . . . . . . . . . Robots Rewired 5 | . . . . . . . . . 5 . . . . . Allies Hacked . | . . . . . . . . . . . . . . . Hacks Repelled . | . . . . . . . . . . . . . . . Allies | -11 -10 -9 -8 -7 -6 -5 -5 -5 -5 -4 -4 -3 -2 -1 -------- Run | Yrd Mat Mat Mat Fac Fac Fac Upp Upp War Pro Fac Res Res Acc Total Allies 7 | . . . . . 2 . . . 5 . . . . . Largest Group 5 | . . . . . 2 . . . 5 . . . . . Highest-Rated Group 241 | . . . . . 82 . . . 241 . . . . . Highest-Rated Ally 64 | . . . . . 41 . . . 64 . . . . . Total Orders . | . . . . . . . . . . . . . . . Ally Attacks 25 | . . . . . 18 . . . 7 . . . . . Total Damage 898 | . . . . . 680 . . . 218 . . . . . Kills 5 | . . . . . 5 . . . . . . . . . Allies Corrupted . | . . . . . . . . . . . . . . . Allies Melted . | . . . . . . . . . . . . . . . Intel | -11 -10 -9 -8 -7 -6 -5 -5 -5 -5 -4 -4 -3 -2 -1 ------- Run | Yrd Mat Mat Mat Fac Fac Fac Upp Upp War Pro Fac Res Res Acc Active Infowar (turns) 3520 | 97 175 416 198 740 464 116 160 102 148 . . 135 767 2 Optics 135 | . . . . . . . . . . . . 135 . . Sensors 767 | . . . . . . . . . . . . . 767 . Terrain 283 | . . . . . 283 . . . . . . . . . Seismic 2616 | 97 175 416 198 740 464 116 160 102 148 . . . . . ECM 2 | . . . . . . . . . . . . . . 2 Robot Analysis Total . | . . . . . . . . . . . . . . . Derelict Logs Recovered 1 | . . . . . . . 1 . . . . . . . Drone Launches . | . . . . . . . . . . . . . . . Drone Recoveries . | . . . . . . . . . . . . . . . Exploration | -11 -10 -9 -8 -7 -6 -5 -5 -5 -5 -4 -4 -3 -2 -1 ------------- Run | Yrd Mat Mat Mat Fac Fac Fac Upp Upp War Pro Fac Res Res Acc Turns Passed 5720 | 227 175 717 755 740 464 116 160 102 525 180 135 397 833 194 Spaces Moved 7218 | 137 145 432 488 950 699 243 353 266 769 271 247 458 1433 327 Core 95 | 3 . . . . . . . . . . . 2 . 90 Treads . | . . . . . . . . . . . . . . . Legs 1381 | 134 145 432 488 182 . . . . . . . . . . Wheels . | . . . . . . . . . . . . . . . Hover 5742 | . . . . 768 699 243 353 266 769 271 247 456 1433 237 Flight . | . . . . . . . . . . . . . . . Fastest Speed 26 | 50 120 120 120 28 34 30 30 35 35 34 26 26 41 40 Average Speed 58 | 118 120 120 120 57 40 30 31 35 56 56 39 44 43 47 Slowest Speed 280 | 120 120 190 120 280 102 30 35 35 102 102 105 200 56 111 Overloaded Moves . | . . . . . . . . . . . . . . . Propulsion Burnouts . | . . . . . . . . . . . . . . . Robots Hopped . | . . . . . . . . . . . . . . . Potential Cave-ins 7 | . . . . . 3 . . . . 2 . . 2 . Cave-ins Triggered . | . . . . . . . . . . . . . . . Exploration Rate (%) 32 | 6 25 36 41 32 20 7 63 54 87 47 5 13 37 15 Regions Visited 14 Branch Regions 4 Pre-discovered Areas . | . . . . . . . . . . . . . . . Known Exits Taken 6 | . . . . . . . 1 1 1 1 1 1 . . Unknown Exits Taken 8 | 1 1 1 1 1 1 1 . . . . . . 1 . Scrap Searched 5 | . . . . . . . 3 2 . . . . . . Spaces Dug 18 | . . . . . . . . . . . . 3 14 1 Terrain Destroyed 325 | . . . . . 36 . . . . 185 . 88 15 1 Melee 18 | . . . . . . . . . . . . 3 14 1 Projectile 5 | . . . . . . . . . . 2 . 2 1 . AOE 302 | . . . . . 36 . . . . 183 . 83 . . Terrain Rammed . | . . . . . . . . . . . . . . . Walls Destroyed . | . . . . . . . . . . . . . . . Machines Disabled . | . . . . . . . . . . . . . . . Actions | -11 -10 -9 -8 -7 -6 -5 -5 -5 -5 -4 -4 -3 -2 -1 --------- Run | Yrd Mat Mat Mat Fac Fac Fac Upp Upp War Pro Fac Res Res Acc Total 8325 | 165 146 553 597 1094 867 283 399 272 855 288 279 574 1593 360 Wait 558 | . 1 38 51 81 129 34 42 1 46 . 19 39 76 1 Move 7205 | 136 144 431 487 949 698 242 352 265 768 270 247 457 1432 327 Hop . | . . . . . . . . . . . . . . . Pick Up 65 | 5 1 6 6 9 4 1 . . 6 . 4 5 15 3 Fast Attach 58 | 7 . 4 3 5 . . 3 1 4 2 2 16 9 2 Attach 41 | . . 3 1 1 5 1 . 2 1 1 3 10 4 9 Detach 8 | . . . . . . . 2 2 1 1 . 1 . 1 Swap 48 | 1 . 6 8 11 6 . . . . 1 . . 12 3 Drop 68 | . . 9 10 14 7 1 . . 4 4 1 1 11 6 Fire 163 | 16 . 54 31 24 7 2 . . . 9 . 13 7 . Melee 69 | . . . . . . . . 1 2 . 3 31 27 5 Ram 9 | . . . . . 4 2 . . . . . . . 3 Kick 2 | . . 2 . . . . . . . . . . . . Crush . | . . . . . . . . . . . . . . . Escape Stasis 8 | . . . . . 7 . . . . . . 1 . . Rewire 23 | . . . . . . . . . 23 . . . . . Trap . | . . . . . . . . . . . . . . . Miscellaneous . | . . . . . . . . . . . . . . . Route ------- -11/Scrapyard -10/Materials (discovered 2 exits: *Mat / [*Min]) -9/Materials -8/Materials -7/Factory -6/Factory -5/Factory -5/Upper Caves -5/Upper Caves -5/Warlord -4/Proximity Caves -4/Factory (discovered 2 exits: *Res / Upp) -3/Research (discovered 2 exits: *Res / Tes) -2/Research (discovered 2 exits: *Acc x2) -1/Access History --------- Turn | Location | Event 21 | -11/Scrapyard | Discovered new exit (range 16) 228 | -11/Scrapyard | Entered Materials 236 | -10/Materials | Discovered new exit (range 13) 297 | -10/Materials | Discovered new exit (range 16) 305 | -10/Materials | Build established: Mutant 403 | -10/Materials | Entered another Materials area 403 | -9/Materials | Evolved 2 slots: Propulsion x1, Utility x1 539 | -9/Materials | Lost 4 parts (1n1u2w) 892 | -9/Materials | Discovered new exit (range 15) 1120 | -9/Materials | Entered another Materials area 1120 | -8/Materials | Evolved 2 slots: Propulsion x1, Utility x1 1554 | -8/Materials | Discovered new exit (range 15) 1875 | -8/Materials | Entered Factory 1875 | -7/Factory | Evolved 2 slots: Utility x1, Weapon x1 1915 | -7/Factory | Fabricated Imp. Gravmag System (x2) 2587 | -7/Factory | Build established: Gunner 2612 | -7/Factory | Discovered new exit (range 7) 2615 | -7/Factory | Entered another Factory area 2615 | -6/Factory | Evolved 2 slots: Propulsion x1, Utility x1 2990 | -6/Factory | Spotted B-75 Beast 3042 | -6/Factory | Build established: Mutant 3050 | -6/Factory | Lost 4 parts (2n1u1w) 3076 | -6/Factory | Discovered new exit (range 7) 3079 | -6/Factory | Entered another Factory area 3079 | -5/Factory | Evolved 2 slots: Power x1, Propulsion x1 3182 | -5/Factory | Discovered new exit (range 5) 3195 | -5/Factory | Entered Upper Caves 3341 | -5/Upper Caves | Discovered new exit (range 12) 3354 | -5/Upper Caves | Identified exit to Upper Caves 3355 | -5/Upper Caves | Entered another Upper Caves area 3372 | -5/Upper Caves | Encountered a Warlord checkpoint 3455 | -5/Upper Caves | Discovered new exit (range 4) 3456 | -5/Upper Caves | Identified exit to Warlord 3457 | -5/Upper Caves | Entered Warlord 3557 | -5/Warlord | Received a Watcher feed algorithm from an ecstatic Tinkerer 3578 | -5/Warlord | Learned Factory terminal intel 3579 | -5/Warlord | Learned Testing trap positions 3667 | -5/Warlord | Found Prototype Special Weapon 3669 | -5/Warlord | Found Prototype Special Weapon 3671 | -5/Warlord | Found Prototype Special Weapon 3671 | -5/Warlord | Identified RU-N14's Throwing Claymores v3 (x3) 3675 | -5/Warlord | Found RU-N14's Throwing Claymores v3 3696 | -5/Warlord | Build established: Derelict-Mutant 3750 | -5/Warlord | Warlord's base attacked by MAIN.C 3804 | -5/Warlord | Met Warlord 3952 | -5/Warlord | Opened side exit 3974 | -5/Warlord | Discovered new exit (range 9) 3981 | -5/Warlord | Identified exit to Proximity Caves 3982 | -5/Warlord | Entered Proximity Caves 3985 | -4/Proximity Caves | Spotter reported a threat 3985 | -4/Proximity Caves | Spotter reported a threat 4030 | -4/Proximity Caves | System corruption reached 10% 4046 | -4/Proximity Caves | Attracted the attention of an 0b10 checkpoint 4160 | -4/Proximity Caves | Discovered new exit (range 5) 4162 | -4/Proximity Caves | Identified exit to Factory 4162 | -4/Proximity Caves | Entered Factory 4162 | -4/Factory | Evolved 2 slots: Utility x2 4163 | -4/Factory | Identified exit to Upper Caves 4164 | -4/Factory | Loaded intel: 28 terminal locations 4208 | -4/Factory | Discovered new exit (range 5) 4294 | -4/Factory | Identified exit to Research 4297 | -4/Factory | Entered Research 4297 | -3/Research | Evolved 2 slots: Utility x2 4298 | -3/Research | Identified exit to Testing 4424 | -3/Research | Lost 7 parts (2p4n1u) 4446 | -3/Research | System corruption reached 10% 4488 | -3/Research | Lost 11 parts (1p1n5u4w) 4631 | -3/Research | Core integrity fell below 50% 4685 | -3/Research | Discovered new exit (range 6) 4694 | -3/Research | Identified exit to Research 4694 | -3/Research | Entered another Research area 4694 | -2/Research | Warlord forces began assault on 0b10 4694 | -2/Research | Evolved 2 slots: Propulsion x1, Utility x1 4804 | -2/Research | Research machine network offline 4830 | -2/Research | Build established: Scavenger-Mutant 4864 | -2/Research | Found Prototype Hackware 4864 | -2/Research | Identified Exp. Hacking Suite 4960 | -2/Research | Met up with Warlord 4976 | -2/Research | Borebot progress halted 5152 | -2/Research | Build established: Hacker-Mutant 5170 | -2/Research | Borebot progress halted 5233 | -2/Research | Borebot progress halted 5280 | -2/Research | Spotted Striker 5280 | -2/Research | Spotted Executioner 5315 | -2/Research | Spotted B-90 Cyclops 5352 | -2/Research | Destroyed Striker 5462 | -2/Research | Spotted Striker 5487 | -2/Research | Spotted B-90 Cyclops 5489 | -2/Research | Spotted Striker 5520 | -2/Research | Discovered new exit (range 16) 5527 | -2/Research | Discovered new exit (range 13) 5527 | -2/Research | Entered Access 5527 | -1/Access | Evolved 2 slots: Propulsion x1, Utility x1 5556 | -1/Access | Lost 12 parts (6n5u1w) 5664 | -1/Access | Spotted B-99 Colossus 5691 | -1/Access | Core integrity fell below 50% 5695 | -1/Access | Garrison activated, responded to threat 5707 | -1/Access | Core integrity fell below 20% 5719 | -1/Access | Lost 17 parts (3p7n5u2w) 5721 | -1/Access | Destroyed by P-80 Master with Gamma Rifle Last Messages --------------- 05679_ Exp. Hacking Suite destroyed. 05680_ S-43 Plague destroyed. 05681_ Acquired 36 matter. 05681_ Hacking Suite destroyed. 05681_ S-43 Plague destroyed. 05682_ Backup Propulsion VII destroyed. 05683_ P-80 Master resets S-43 Plague, system corruption cleaned. 05685_ Adv. Weapon Cycler destroyed. 05685_ Exp. Heat Sink destroyed. 05685_ Slammed into S-43 Plague. 05688_ Nanosword destroyed. 05688_ P-80 Master resets S-43 Plague, system corruption cleaned. 05695_ ALERT: Activating Garrison Access A003. 05697_ S-43 Plague misfires. 05707_ S-43 Plague destroyed. 05719_ Slammed into A-15 Conveyor. 05719_ Imp. Melee Analysis Suite broken. 05719_ Destabilizing: Short circuit. 05720_ Slammed into P-80 Master. [Achievement: I Was Wrong!] Map ----- +----------------------------------------------------+ | ?????????????????????????????????????????????????? | | ?????????????????????????????????????????????????? | | ?????????????????????????????????????????????????? | | ?????????????????????????????????????????????????? | | ?????????????????????????????????????????????????? | | ?????????????????????????????????????????????????? | | ?????????????????????????????????????????????????? | | ?????????????????????????????????????????????????? | | ?????????????????????????????????????????????????? | | ?????????????????????????????????????????????????? | | ?????????????????????????? ?????????????????????? | | #????????????????????????? ???????????????????? | | #????????????????????????? ????????????????? | | #????????????????????????? #???????????????? | | #????????????????????????? #???????????????? | | #????????????????????????? #???????????????? | | #????????????????????????? #???????????????? | | ??????????????????######## k #???????????????? | | ??????????????????# #???????????????? | | ??????????????????# #???????????????? | | ??????????????????# R #???????????????? | | ??????????????????+ #???????????????? | | #######???????????? p ?????????????????? | | #?????????????? ???????????????????? | | #???????????????? pA ?????????????????????? | | #?????????????????#@#??????????????????????? | | " #?????????????????# #??????????????????????? | | #?????????????????#s#??????????????????????? | | #?????????????????#s#??????????????????????? | | #??????????####???#s#??????????????????????? | | #??????????? ??#s#??????????????????????? | | #????????????? ?#s#??????????????????????? | | [ #?????????????? #s###############????????? | | =% #???????????????? / s #????????? | | [= #?????????????????# ###### #????????? | | /######## #?????????????# #????# #????????? | | #?????????????# ##/###### #????????? | | #???????????????????# ## # #????????? | | #???????????????????# ## # ##+####### | | ##/#####+##????????????# ## ! / | | # #????????????# ## # | | # * ##########+### ## # | | # " ## # | | # ####### ####?######## | | / #?????# #???????????# | | # * #?????# #???????????# " " | | # #?????# ############# """ """?? | | # #?????# = """ ""?? | | ###########?????# % " "?? | | #???????????????# ?? | +----------------------------------------------------+ Best States ------------- Heat Dissipation 78 Energy Generation 45 Energy Capacity 440 Matter Stores 300 Matter Capacity 300 Sight Range 22 Robot Scan Range 16 Terrain Scan Range 16 Terrain Scan Density 210 Armor Coverage 225 Propulsion Shielding 90 Weapon Cycling 25 Phase Shifting 15 Evasion (%) 72 Targeting Accuracy 6 Melee Accuracy 6 Target Analysis 8 Core Analysis 6 Kinecelleration 30 Offensive Hacking 40 Item Schematics ----------------- None Robot Schematics ------------------ None Fabricated ------------ Imp. Gravmag System | x2 | -7/Factory | Preloaded Repaired ---------- Nothing Alien Tech Used ----------------- None Achievements -------------- I Was Wrong! Challenges ------------ None Game ------ Seed RefineryDiametricLauncher Manual? 0 Play Time 01:05:25 Cumulative 193.6 hours Start 2025.07.27 @ 22:30:16 End 2025.07.27 @ 23:34:46 Sessions 1 Manual Loads 0 Difficulty Rogue Special Mode None Game No. 467 Rogue 467 Adventurer 0 Explorer 0 Win Type - Total 8 Types 6/0/1/1/0/0/0/0/0/0 Lore% 75 Gallery% 66 Achievement% 52 Wizard Run 0 Options --------- Layout 0 ASCII 0 Keyboard 0 Movement Numpad Keybinds 0 Fullscreen 2 Font 18/Terminus Map View 76x50 Zoom Use 0% Tactical HUD 1 Map Filters NONE Filters SATURATION(100) Steam 1 RUN: 91493595-a04c-4a6c-95dd-4606e26e9c92